[Event "Turkish Cup 2024"]
[Site "Denizli"]
[Date "2024.07.31"]
[Round "2"]
[White "Acar, Ilayda"]
[Black "Hatirli, Ugur Can"]
[Result "0-1"]
[ECO "B41"]
[WhiteElo "1709"]
[BlackElo "1948"]
[Annotator "RC"]
[PlyCount "186"]
[EventDate "2024.08.01"]
[EventType "swiss"]
[EventCountry "TUR"]
[SourceTitle "playchess.com"]
[Source "ChessBase"]
[SourceQuality "1"]
[TimeControl "5400+30"]

1. e4 {[%emt 0:01:00]} c5 {[%emt 0:01:00]} 2. Nf3 {[%emt 0:00:30]} e6 {[%emt 0:00:30]} 3. d4 {[%emt 0:00:30]} cxd4 {[%emt 0:00:30]} 4. Nxd4 {[%emt 0:00:00]} a6 {[%emt 0:00:30]} 5. c4 {[%emt 0:00:00]} Nf6 {[%emt 0:00:30]} 6. Nc3 {[%emt 0:01:30]} Qc7 {[%emt 0:03:30]} 7. Be3 {[%emt 0:01:30]} Bb4 {[%emt 0:01:30]} 8. f3 {[%emt 0:07:30]} Nc6 {[%emt 0:00:30]} 9. Rc1 {[%emt 0:06:30]} O-O {[%emt 0:27:30]} 10. a3 {[%emt 0:11:30]} Be7 {[%emt 0:00:30]} 11. Be2 {[%emt 0:02:30]} d6 {[%emt 0:03:30]} 12. O-O {[%emt 0:04:30]} Ne5 {[%emt 0:02:30]} 13. b4 {[%emt 0:03:30]} Bd7 {[%emt 0:06:30]} 14. Qd2 {[%emt 0:13:30]} Rfc8 {[%emt 0:02:30]} 15. Rfd1 {[%emt 0:11:30]} Qb8 {[%emt 0:06:30]} 16. Qa2 {[%emt 0:02:30]} h6 {[%emt 0:11:30]} 17. Qb3 {[%emt 0:06:30]} Qc7 {[%emt 0:04:30]} 18. Qb2 {[%emt 0:00:30]} Be8 {[%emt 0:03:30]} 19. Qd2 {[%emt 0:06:54]} Qb8 {[%emt 0:03:11]} 20. Qa2 {[%emt 0:00:40]} Bd7 {[%emt 0:05:15]} 21. Qb3 {[%emt 0:01:12]} Ne8 {[%emt 0:01:05]} 22. f4 {[%emt 0:04:38]} Ng6 {[%emt 0:02:54]} 23. Bg4 {[%emt 0:03:21]} Nf6 {[%emt 0:01:29]} 24. Bh3 {[%emt 0:02:48]} Nf8 {[%emt 0:04:57]} 25. g3 {[%emt 0:02:35]} Qc7 {[%emt 0:00:42]} 26. Qb2 {[%emt 0:02:51]} Qd8 {[%emt 0:03:48]} 27. Qb3 {[%emt 0:02:46]} Qc7 {[%emt 0:01:45]} 28. Qb2 {[%emt 0:00:30]} Qb8 {[%emt 0:00:00]} 29. Qb3 {[%emt 0:00:32]} Rd8 {[%emt 0:00:00]} 30. Qc2 {[%emt 0:00:33]} g6 {[%emt 0:00:52]} 31. Qe2 {[%emt 0:00:36]} e5 {[%emt 0:00:39]} 32. Nf5 {[%emt 0:00:32]} gxf5 {[%emt 0:01:02]} 33. exf5 {[%emt 0:00:10]} Bc6 {[%emt 0:00:59]} 34. Nd5 {[%emt 0:00:40]} Bxd5 {[%emt 0:00:18]} 35. cxd5 {[%emt 0:00:02]} N8d7 {[%emt 0:00:41]} 36. g4 {[%emt 0:00:45]} Nh7 {[%emt 0:00:37]} 37. fxe5 {[%emt 0:01:14]} Nxe5 {[%emt 0:00:02]} 38. Bxh6 {[%emt 0:00:05]} Bg5 {[%emt 0:01:01]} 39. Bxg5 {[%emt 0:00:30]} Nxg5 {[%emt 0:00:30]} 40. Bg2 {[%emt 0:00:00]} Re8 {[%emt 0:00:00]} 41. Kh1 {[%emt 0:00:14]} f6 {[%emt 0:00:18]} 42. h4 {[%emt 0:00:39]} Ngf7 {[%emt 0:00:54]} 43. Qf2 {[%emt 0:01:00]} Nxg4 {[%emt 0:01:10]} 44. Qg3 {[%emt 0:00:07]} Nfh6 {[%emt 0:00:00]} 45. Rd4 {[%emt 0:00:25]} Re7 {[%emt 0:00:33]} 46. Bh3 {[%emt 0:01:00]} Rg7 {[%emt 0:00:30]} 47. Rxg4 {[%emt 0:00:48]} Nxg4 {[%emt 0:00:30]} 48. Bxg4 {[%emt 0:00:00]} Qe8 {[%emt 0:00:44]} 49. Qf4 {[%emt 0:00:28]} Qe5 {[%emt 0:00:30]} 50. Qf3 {[%emt 0:00:41]} Rh7 {[%emt 0:00:31]} 51. h5 {[%emt 0:01:07]} Re8 {[%emt 0:00:15]} 52. Rg1 {[%emt 0:00:00]} Kf8 {[%emt 0:00:13]} 53. Qg2 {[%emt 0:00:35]} Qe4 {[%emt 0:00:07]} 54. Qxe4 {[%emt 0:00:50]} Rxe4 {[%emt 0:00:30]} 55. Kh2 {[%emt 0:00:30]} Rxg4 {[%emt 0:00:30]} 56. Rxg4 {[%emt 0:00:30]} Rxh5+ {[%emt 0:00:30]} 57. Kg3 {[%emt 0:00:30]} Rxf5 {[%emt 0:00:30]} 58. Rd4 {[%emt 0:00:00]} Ke7 {[%emt 0:00:50]} 59. a4 {[%emt 0:00:41]} Kd7 {[%emt 0:00:10]} 60. a5 {[%emt 0:00:30]} b6 {[%emt 0:01:07]} 61. axb6 {[%emt 0:00:24]} Kc8 {[%emt 0:00:03]} 62. Kg4 {[%emt 0:00:34]} Rg5+ {[%emt 0:00:18]} 63. Kf3 {[%emt 0:00:48]} Kb7 {[%emt 0:00:04]} 64. Kf4 {[%emt 0:00:40]} Kxb6 {[%emt 0:00:05]} 65. Kf3 {[%emt 0:00:18]} Kb5 {[%emt 0:00:03]} 66. Ke3 {[%emt 0:00:15]} Rg3+ {[%emt 0:00:49]} 67. Kf4 {[%emt 0:00:13]} Rb3 {[%emt 0:00:01]} 68. Kf5 {[%emt 0:00:30]} Rxb4 {[%emt 0:00:02]} 69. Rd1 {[%emt 0:00:15]} a5 {[%emt 0:01:27]} 70. Ke6 {[%emt 0:00:57]} Kc5 {[%emt 0:01:37]} 71. Rc1+ {[%emt 0:00:36]} Rc4 {[%emt 0:00:01]} 72. Rxc4+ {[%emt 0:00:00]} Kxc4 {[%emt 0:00:30]} 73. Kxd6 {[%emt 0:00:22]} a4 {[%emt 0:00:00]} 74. Ke6 {[%emt 0:00:17]} a3 {[%emt 0:00:00]} 75. d6 {[%emt 0:00:16]} a2 {[%emt 0:00:11]} 76. d7 {[%emt 0:00:30]} a1=Q {[%emt 0:00:30]} 77. d8=Q {[%emt 0:00:00]} Qe5+ {[%emt 0:00:00]} 78. Kf7 {[%emt 0:00:00]} f5 {[%emt 0:00:00]} 79. Kg6 {[%emt 0:00:28]} f4 {[%emt 0:00:00]} 80. Qc8+ {[%emt 0:01:18]} Kd4 {[%emt 0:00:21]} 81. Qd7+ {[%emt 0:01:17]} Ke3 {[%emt 0:00:16]} 82. Qd1 {[%emt 0:00:35]} Kf2 {[%emt 0:01:48]} 83. Qd2+ {[%emt 0:00:18]} Kg3 {[%emt 0:00:21]} 84. Qd3+ {[%emt 0:01:35]} f3 {[%emt 0:00:07]} 85. Kh6 {[%emt 0:00:04]} Kg2 {[%emt 0:00:33]} 86. Qc2+ {[%emt 0:00:28]} f2 {[%emt 0:00:17]} 87. Qc6+ {[%emt 0:00:15]} Kh2 {[%emt 0:02:00]} 88. Qc2 {[%emt 0:00:28]} Qf4+ {[%emt 0:01:02]} 89. Kg7 {[%emt 0:00:40]} Kg1 {[%emt 0:01:13]} 90. Qc5 {[%emt 0:00:06]} Qf3 {[%emt 0:00:09]} 91. Kh8 {[%emt 0:00:37]} Kh2 {[%emt 0:01:13]} 92. Qc2 {[%emt 0:00:14]} Qh5+ {[%emt 0:00:28]} 93. Kg7 {[%emt 0:01:21]} Kg1 {[%emt 0:00:10]} 0-1

[Event "Turkish Cup 2024"]
[Site "Denizli"]
[Date "2024.07.31"]
[Round "2"]
[White "Batmaz, Onur Utku"]
[Black "Ozdemir, Serhan Berat"]
[Result "0-1"]
[ECO "E62"]
[WhiteElo "1708"]
[BlackElo "2194"]
[Annotator "RC"]
[PlyCount "98"]
[EventDate "2024.08.01"]
[EventType "swiss"]
[EventCountry "TUR"]
[SourceTitle "playchess.com"]
[Source "ChessBase"]
[SourceQuality "1"]
[TimeControl "5400+30"]

1. Nf3 {[%emt 0:01:00]} Nf6 {[%emt 0:04:00]} 2. g3 {[%emt 0:00:00]} g6 {[%emt 0:00:30]} 3. Bg2 {[%emt 0:01:00]} Bg7 {[%emt 0:00:30]} 4. c4 {[%emt 0:00:30]} O-O {[%emt 0:00:30]} 5. O-O {[%emt 0:00:30]} d6 {[%emt 0:00:00]} 6. d4 {[%emt 0:00:00]} c6 {[%emt 0:00:00]} 7. Nc3 {[%emt 0:00:00]} Qb6 {[%emt 0:00:00]} 8. Qc2 {[%emt 0:11:30]} Qa6 {[%emt 0:08:00]} 9. Nd2 {[%emt 0:13:30]} Nbd7 {[%emt 0:02:30]} 10. b4 {[%emt 0:03:30]} Qb6 {[%emt 0:01:30]} 11. b5 {[%emt 0:15:30]} Qxd4 {[%emt 0:01:30]} 12. bxc6 {[%emt 0:02:30]} bxc6 {[%emt 0:06:30]} 13. Bxc6 {[%emt 0:03:30]} Rb8 {[%emt 0:00:00]} 14. Bb2 {[%emt 0:14:30]} Qb6 {[%emt 0:01:00]} 15. Bb5 {[%emt 0:04:30]} a6 {[%emt 0:01:30]} 16. Bxd7 {[%emt 0:02:30]} Qxb2 {[%emt 0:04:30]} 17. Qxb2 {[%emt 0:00:00]} Rxb2 {[%emt 0:00:00]} 18. Bxc8 {[%emt 0:00:00]} Rxc8 {[%emt 0:02:00]} 19. Rfd1 {[%emt 0:01:30]} Nd7 {[%emt 0:00:00]} 20. Nd5 {[%emt 0:06:52]} Kf8 {[%emt 0:00:00]} 21. Rab1 {[%emt 0:00:39]} Rcb8 {[%emt 0:01:30]} 22. Kf1 {[%emt 0:07:02]} Rxa2 {[%emt 0:03:30]} 23. Rxb8+ {[%emt 0:02:56]} Nxb8 {[%emt 0:00:30]} 24. Ne4 {[%emt 0:00:30]} Ra1 {[%emt 0:07:30]} 25. Rxa1 {[%emt 0:01:37]} Bxa1 {[%emt 0:00:00]} 26. c5 {[%emt 0:00:00]} f5 {[%emt 0:02:00]} 27. Ng5 {[%emt 0:01:13]} h6 {[%emt 0:09:30]} 28. Ne6+ {[%emt 0:01:22]} Kf7 {[%emt 0:00:00]} 29. Ndc7 {[%emt 0:02:05]} Nc6 {[%emt 0:01:00]} 30. cxd6 {[%emt 0:01:26]} exd6 {[%emt 0:00:30]} 31. Nf4 {[%emt 0:00:00]} a5 {[%emt 0:00:30]} 32. Nb5 {[%emt 0:00:26]} Be5 {[%emt 0:04:30]} 33. Nd3 {[%emt 0:02:11]} Ke6 {[%emt 0:00:30]} 34. Nc7+ {[%emt 0:00:21]} Kd7 {[%emt 0:00:30]} 35. Nd5 {[%emt 0:00:05]} Ne7 {[%emt 0:03:30]} 36. Nb6+ {[%emt 0:01:53]} Kc6 {[%emt 0:00:00]} 37. Nxe5+ {[%emt 0:00:48]} dxe5 {[%emt 0:02:00]} 38. Nc4 {[%emt 0:00:30]} Kb5 {[%emt 0:00:00]} 39. Nxe5 {[%emt 0:00:00]} a4 {[%emt 0:00:00]} 40. Nd3 {[%emt 0:00:47]} a3 {[%emt 0:00:30]} 41. Nc1 {[%emt 0:00:01]} Nd5 {[%emt 0:00:00]} 42. f3 {[%emt 0:00:37]} Nb4 {[%emt 0:02:00]} 43. e4 {[%emt 0:01:15]} fxe4 {[%emt 0:00:30]} 44. fxe4 {[%emt 0:00:30]} a2 {[%emt 0:00:00]} 45. Nxa2 {[%emt 0:00:00]} Nxa2 {[%emt 0:00:00]} 46. Kf2 {[%emt 0:00:19]} Kc5 {[%emt 0:00:30]} 47. Kf3 {[%emt 0:00:31]} Kd4 {[%emt 0:00:30]} 48. h4 {[%emt 0:00:00]} Nc3 {[%emt 0:00:00]} 49. h5 {[%emt 0:00:25]} g5 {[%emt 0:00:00]} 0-1

[Event "Turkish Cup 2024"]
[Site "Denizli"]
[Date "2024.07.31"]
[Round "2"]
[White "Kervancioglu, Talu"]
[Black "Saygin, Nurettin"]
[Result "1-0"]
[ECO "B51"]
[WhiteElo "1702"]
[BlackElo "1937"]
[Annotator "ChessBase"]
[PlyCount "155"]
[EventDate "2024.08.01"]
[EventType "swiss"]
[EventCountry "TUR"]
[SourceTitle "playchess.com"]
[Source "ChessBase"]
[SourceQuality "1"]
[TimeControl "5400+30"]

1. e4 {[%emt 0:01:00]} c5 {[%emt 0:01:00]} 2. Nf3 {[%emt 0:00:30]} d6 {[%emt 0:00:30]} 3. Bb5+ {[%emt 0:00:00]} Nd7 {[%emt 0:00:30]} 4. d4 {[%emt 0:01:00]} cxd4 {[%emt 0:00:30]} 5. Qxd4 {[%emt 0:00:30]} e5 {[%emt 0:01:30]} 6. Qd3 {[%emt 0:02:30]} Be7 {[%emt 0:02:30]} 7. O-O {[%emt 0:01:30]} a6 {[%emt 0:01:30]} 8. Bxd7+ {[%emt 0:00:30]} Bxd7 {[%emt 0:02:30]} 9. b3 {[%emt 0:11:30]} Bc6 {[%emt 0:02:30]} 10. c4 {[%emt 0:09:30]} f5 {[%emt 0:06:30]} 11. Nc3 {[%emt 0:11:30]} f4 {[%emt 0:09:30]} 12. Ba3 {[%emt 0:05:30]} g5 {[%emt 0:06:30]} 13. Rad1 {[%emt 0:11:30]} g4 {[%emt 0:02:30]} 14. Ne1 {[%emt 0:00:30]} Qa5 {[%emt 0:05:30]} 15. Bxd6 {[%emt 0:22:34]} O-O-O {[%emt 0:00:30]} 16. b4 {[%emt 0:02:44]} Qb6 {[%emt 0:05:30]} 17. c5 {[%emt 0:00:52]} Qxb4 {[%emt 0:06:30]} 18. Nc2 {[%emt 0:00:18]} Qa5 {[%emt 0:00:30]} 19. Qc4 {[%emt 0:00:55]} Bxd6 {[%emt 0:02:30]} 20. cxd6 {[%emt 0:00:32]} Kb8 {[%emt 0:02:30]} 21. Nb4 {[%emt 0:06:02]} Bb5 {[%emt 0:03:30]} 22. Nxb5 {[%emt 0:01:20]} axb5 {[%emt 0:00:30]} 23. Qc3 {[%emt 0:01:19]} Ka8 {[%emt 0:02:30]} 24. Qc7 {[%emt 0:03:51]} Qxc7 {[%emt 0:00:30]} 25. dxc7 {[%emt 0:00:30]} Rc8 {[%emt 0:00:30]} 26. Rd8 {[%emt 0:00:00]} Ne7 {[%emt 0:02:30]} 27. Rxh8 {[%emt 0:01:40]} Rxh8 {[%emt 0:00:30]} 28. Rd1 {[%emt 0:00:02]} Rc8 {[%emt 0:01:30]} 29. Rd8 {[%emt 0:00:28]} b6 {[%emt 0:00:30]} 30. Rd7 {[%emt 0:01:40]} Ng8 {[%emt 0:02:30]} 31. Nd5 {[%emt 0:00:46]} Kb7 {[%emt 0:00:00]} 32. Rd6 {[%emt 0:00:00]} Ne7 {[%emt 0:02:00]} 33. Rxb6+ {[%emt 0:00:39]} Ka7 {[%emt 0:00:00]} 34. Rb8 {[%emt 0:01:54]} Rxc7 {[%emt 0:01:00]} 35. Nxc7 {[%emt 0:00:30]} Kxb8 {[%emt 0:00:30]} 36. Nxb5 {[%emt 0:00:00]} Kb7 {[%emt 0:00:30]} 37. Nd6+ {[%emt 0:00:13]} Kc6 {[%emt 0:00:30]} 38. Nf7 {[%emt 0:00:02]} Ng6 {[%emt 0:00:00]} 39. Kf1 {[%emt 0:01:03]} Kc5 {[%emt 0:01:00]} 40. Ke2 {[%emt 0:00:27]} Kd4 {[%emt 0:00:00]} 41. f3 {[%emt 0:00:10]} Nh4 {[%emt 0:01:00]} 42. Kf2 {[%emt 0:00:41]} Ng6 {[%emt 0:01:30]} 43. Ke2 {[%emt 0:00:33]} h5 {[%emt 0:01:30]} 44. Nd6 {[%emt 0:01:15]} Kc3 {[%emt 0:01:30]} 45. Nf5 {[%emt 0:01:06]} Kc4 {[%emt 0:03:30]} 46. Kd2 {[%emt 0:00:53]} Kb4 {[%emt 0:00:30]} 47. Kc2 {[%emt 0:00:11]} Ka3 {[%emt 0:00:30]} 48. Kb1 {[%emt 0:00:05]} Nf8 {[%emt 0:04:19]} 49. Ng7 {[%emt 0:00:45]} h4 {[%emt 0:01:01]} 50. fxg4 {[%emt 0:00:49]} Nh7 {[%emt 0:00:58]} 51. Nf5 {[%emt 0:00:54]} h3 {[%emt 0:00:42]} 52. gxh3 {[%emt 0:00:10]} Ng5 {[%emt 0:00:00]} 53. h4 {[%emt 0:00:48]} Nxe4 {[%emt 0:00:07]} 54. h5 {[%emt 0:00:22]} Nf6 {[%emt 0:02:31]} 55. h6 {[%emt 0:00:30]} Nh7 {[%emt 0:00:00]} 56. Kc2 {[%emt 0:00:15]} e4 {[%emt 0:00:00]} 57. Kd2 {[%emt 0:00:20]} Kxa2 {[%emt 0:00:06]} 58. h4 {[%emt 0:00:13]} Kb3 {[%emt 0:00:23]} 59. g5 {[%emt 0:00:19]} Kc4 {[%emt 0:01:01]} 60. Nd6+ {[%emt 0:00:29]} Kd5 {[%emt 0:00:12]} 61. Nxe4 {[%emt 0:00:16]} Kxe4 {[%emt 0:01:17]} 62. g6 {[%emt 0:00:08]} Nf6 {[%emt 0:00:24]} 63. h7 {[%emt 0:00:29]} Kf5 {[%emt 0:00:10]} 64. h8=Q {[%emt 0:00:13]} Kxg6 {[%emt 0:00:06]} 65. Qb8 {[%emt 0:00:02]} Kf5 {[%emt 0:00:37]} 66. Qb5+ {[%emt 0:00:17]} Ke4 {[%emt 0:00:00]} 67. Qc6+ {[%emt 0:00:32]} Kf5 {[%emt 0:00:45]} 68. Qc5+ {[%emt 0:00:41]} Ke4 {[%emt 0:00:04]} 69. Qe7+ {[%emt 0:00:18]} Kf5 {[%emt 0:00:02]} 70. Ke2 {[%emt 0:00:00]} Nd5 {[%emt 0:00:45]} 71. Qg5+ {[%emt 0:00:14]} Ke4 {[%emt 0:00:00]} 72. Qg6+ {[%emt 0:00:25]} Ke5 {[%emt 0:00:28]} 73. Kf3 {[%emt 0:00:12]} Ne7 {[%emt 0:00:33]} 74. Qe4+ {[%emt 0:00:30]} Kf6 {[%emt 0:00:30]} 75. Qxf4+ {[%emt 0:00:00]} Kg6 {[%emt 0:00:00]} 76. Qd6+ {[%emt 0:00:19]} Kf7 {[%emt 0:00:00]} 77. h5 {[%emt 0:00:00]} Ng8 {[%emt 0:00:41]} 78. Qg6+ {[%emt 0:00:00]} 1-0

[Event "Turkish Cup 2024"]
[Site "Denizli"]
[Date "2024.07.31"]
[Round "2"]
[White "Sahin, Zeynep Duru"]
[Black "Yildirim, Ibrahim Halil"]
[Result "1/2-1/2"]
[ECO "B11"]
[WhiteElo "1698"]
[BlackElo "2024"]
[Annotator "RC"]
[PlyCount "82"]
[EventDate "2024.08.01"]
[EventType "swiss"]
[EventCountry "TUR"]
[SourceTitle "playchess.com"]
[Source "ChessBase"]
[SourceQuality "1"]
[TimeControl "5400+30"]

1. e4 {[%emt 0:01:00]} c6 {[%emt 0:05:00]} 2. Nc3 {[%emt 0:00:30]} d5 {[%emt 0:00:30]} 3. Nf3 {[%emt 0:00:00]} Nf6 {[%emt 0:04:30]} 4. e5 {[%emt 0:00:00]} Ne4 {[%emt 0:00:00]} 5. Ne2 {[%emt 0:00:30]} Qb6 {[%emt 0:00:00]} 6. d4 {[%emt 0:00:00]} e6 {[%emt 0:00:00]} 7. Ng3 {[%emt 0:00:00]} c5 {[%emt 0:04:00]} 8. c3 {[%emt 0:04:30]} Nc6 {[%emt 0:04:30]} 9. Bd3 {[%emt 0:04:30]} f5 {[%emt 0:03:30]} 10. exf6 {[%emt 0:02:30]} Nxf6 {[%emt 0:00:30]} 11. O-O {[%emt 0:05:30]} Bd7 {[%emt 0:09:30]} 12. Ne5 {[%emt 0:04:30]} cxd4 {[%emt 0:09:30]} 13. cxd4 {[%emt 0:01:30]} Be7 {[%emt 0:08:30]} 14. Nh5 {[%emt 0:04:30]} Nxe5 {[%emt 0:05:30]} 15. dxe5 {[%emt 0:21:30]} Nxh5 {[%emt 0:00:30]} 16. Qxh5+ {[%emt 0:00:00]} Kd8 {[%emt 0:02:30]} 17. Bg5 {[%emt 0:02:00]} h6 {[%emt 0:03:30]} 18. Be3 {[%emt 0:23:30]} Qb4 {[%emt 0:01:30]} 19. Qf7 {[%emt 0:02:30]} Bf8 {[%emt 0:00:30]} 20. Rac1 {[%emt 0:01:30]} Qe7 {[%emt 0:00:30]} 21. Qf3 {[%emt 0:00:30]} b6 {[%emt 0:08:30]} 22. Bg6 {[%emt 0:03:42]} Rc8 {[%emt 0:09:54]} 23. Qe2 {[%emt 0:02:40]} Bc6 {[%emt 0:01:57]} 24. f4 {[%emt 0:02:12]} Qb7 {[%emt 0:10:10]} 25. f5 {[%emt 0:02:32]} Bd7 {[%emt 0:00:01]} 26. Qg4 {[%emt 0:03:21]} Rxc1 {[%emt 0:01:19]} 27. Rxc1 {[%emt 0:00:54]} exf5 {[%emt 0:03:34]} 28. Bxf5 {[%emt 0:00:39]} Bxf5 {[%emt 0:01:51]} 29. Qxf5 {[%emt 0:00:05]} Be7 {[%emt 0:00:06]} 30. Rd1 {[%emt 0:01:11]} Kc7 {[%emt 0:01:55]} 31. Qe6 {[%emt 0:01:53]} Kb8 {[%emt 0:00:01]} 32. Rxd5 {[%emt 0:00:26]} Rc8 {[%emt 0:01:47]} 33. h3 {[%emt 0:01:34]} Qc6 {[%emt 0:00:52]} 34. Qd7 {[%emt 0:03:22]} Rc7 {[%emt 0:00:28]} 35. Qxc6 {[%emt 0:00:56]} Rxc6 {[%emt 0:00:01]} 36. Rd7 {[%emt 0:00:22]} Rc7 {[%emt 0:00:16]} 37. Rxc7 {[%emt 0:00:07]} Kxc7 {[%emt 0:00:01]} 38. Kf2 {[%emt 0:00:21]} Kc6 {[%emt 0:00:03]} 39. Bf4 {[%emt 0:00:19]} Kd5 {[%emt 0:00:17]} 40. Ke3 {[%emt 0:00:21]} Bf8 {[%emt 0:02:17]} 41. Kd3 {[%emt 0:01:00]} g6 {[%emt 0:00:30]} 1/2-1/2

[Event "Turkish Cup 2024"]
[Site "Denizli"]
[Date "2024.07.31"]
[Round "2"]
[White "Mermer, Yunus"]
[Black "Yilmaz, Kerem Tuna"]
[Result "1/2-1/2"]
[ECO "D55"]
[WhiteElo "1687"]
[BlackElo "2025"]
[Annotator "RC"]
[PlyCount "64"]
[EventDate "2024.08.01"]
[EventType "swiss"]
[EventCountry "TUR"]
[SourceTitle "playchess.com"]
[Source "ChessBase"]
[SourceQuality "1"]
[TimeControl "5400+30"]

1. d4 {[%emt 0:03:00]} Nf6 {[%emt 0:05:00]} 2. c4 {[%emt 0:00:00]} e6 {[%emt 0:02:30]} 3. Nf3 {[%emt 0:00:00]} b6 {[%emt 0:02:30]} 4. Bg5 {[%emt 0:06:30]} Bb7 {[%emt 0:04:30]} 5. Nc3 {[%emt 0:06:30]} Be7 {[%emt 0:18:30]} 6. e3 {[%emt 0:02:30]} O-O {[%emt 0:02:30]} 7. Bd3 {[%emt 0:01:30]} d5 {[%emt 0:00:00]} 8. cxd5 {[%emt 0:02:30]} exd5 {[%emt 0:01:00]} 9. O-O {[%emt 0:04:30]} Nbd7 {[%emt 0:03:30]} 10. Rc1 {[%emt 0:01:30]} c5 {[%emt 0:02:30]} 11. dxc5 {[%emt 0:03:30]} bxc5 {[%emt 0:04:30]} 12. b3 {[%emt 0:01:30]} Nb6 {[%emt 0:02:30]} 13. Qc2 {[%emt 0:03:30]} h6 {[%emt 0:01:30]} 14. Bf4 {[%emt 0:01:30]} Rc8 {[%emt 0:06:30]} 15. Rfd1 {[%emt 0:08:30]} d4 {[%emt 0:16:30]} 16. Bf5 {[%emt 0:12:30]} Bxf3 {[%emt 0:00:30]} 17. gxf3 {[%emt 0:02:30]} Rc6 {[%emt 0:00:30]} 18. Nb5 {[%emt 0:09:30]} Nbd5 {[%emt 0:07:47]} 19. Nxd4 {[%emt 0:02:30]} Ra6 {[%emt 0:01:17]} 20. Ne2 {[%emt 0:02:30]} Qa5 {[%emt 0:05:10]} 21. a4 {[%emt 0:03:30]} Nxf4 {[%emt 0:01:35]} 22. Nxf4 {[%emt 0:00:30]} Rb6 {[%emt 0:01:23]} 23. Bd3 {[%emt 0:08:26]} Bd6 {[%emt 0:01:43]} 24. Ne2 {[%emt 0:00:53]} Bb8 {[%emt 0:04:40]} 25. Qxc5 {[%emt 0:01:33]} Qxc5 {[%emt 0:00:30]} 26. Rxc5 {[%emt 0:00:30]} Rxb3 {[%emt 0:00:00]} 27. Bb5 {[%emt 0:00:48]} Ra3 {[%emt 0:00:44]} 28. Rc6 {[%emt 0:02:52]} Ne8 {[%emt 0:02:15]} 29. Rd8 {[%emt 0:02:20]} Nc7 {[%emt 0:00:20]} 30. Rxf8+ {[%emt 0:03:39]} Kxf8 {[%emt 0:00:01]} 31. Nd4 {[%emt 0:00:15]} a6 {[%emt 0:01:19]} 32. Bxa6 {[%emt 0:01:10]} Rxa4 {[%emt 0:00:10]} 1/2-1/2

[Event "Turkish Cup 2024"]
[Site "Denizli"]
[Date "2024.07.31"]
[Round "2"]
[White "Aygun, Metin Efe"]
[Black "Turkmen, Ataberk"]
[Result "0-1"]
[ECO "B06"]
[WhiteElo "1679"]
[BlackElo "2022"]
[Annotator "RC"]
[PlyCount "66"]
[EventDate "2024.08.01"]
[EventType "swiss"]
[EventCountry "TUR"]
[SourceTitle "playchess.com"]
[Source "ChessBase"]
[SourceQuality "1"]
[TimeControl "5400+30"]

1. e4 {[%emt 0:02:00]} g6 {[%emt 0:01:00]} 2. d4 {[%emt 0:01:30]} Bg7 {[%emt 0:00:30]} 3. Nc3 {[%emt 0:00:00]} d6 {[%emt 0:00:00]} 4. f4 {[%emt 0:00:00]} c6 {[%emt 0:02:00]} 5. Nf3 {[%emt 0:00:30]} Bg4 {[%emt 0:04:30]} 6. Be2 {[%emt 0:08:30]} Qb6 {[%emt 0:05:30]} 7. Na4 {[%emt 0:07:30]} Qc7 {[%emt 1:20:30]} 8. Be3 {[%emt 0:11:30]} Nd7 {[%emt 0:00:00]} 9. O-O {[%emt 0:04:30]} Ngf6 {[%emt 0:00:00]} 10. Nc3 {[%emt 0:05:30]} Bxf3 {[%emt 0:00:00]} 11. Bxf3 {[%emt 0:02:30]} e5 {[%emt 0:00:00]} 12. Kh1 {[%emt 0:16:30]} O-O {[%emt 0:00:00]} 13. d5 {[%emt 0:02:30]} exf4 {[%emt 0:00:00]} 14. Bxf4 {[%emt 0:01:30]} Ne5 {[%emt 0:00:00]} 15. Qd2 {[%emt 0:09:30]} Rfe8 {[%emt 0:00:00]} 16. Bxe5 {[%emt 0:08:32]} Rxe5 {[%emt 0:00:00]} 17. Rad1 {[%emt 0:03:26]} c5 {[%emt 0:00:00]} 18. Rfe1 {[%emt 0:03:50]} Rae8 {[%emt 0:00:00]} 19. Re2 {[%emt 0:04:10]} a6 {[%emt 0:00:00]} 20. Rde1 {[%emt 0:03:08]} b5 {[%emt 0:00:00]} 21. Nd1 {[%emt 0:00:20]} h5 {[%emt 0:00:00]} 22. Nf2 {[%emt 0:00:44]} c4 {[%emt 0:00:00]} 23. c3 {[%emt 0:00:34]} Qc8 {[%emt 0:00:00]} 24. h3 {[%emt 0:00:50]} Nd7 {[%emt 0:00:00]} 25. Qd1 {[%emt 0:01:44]} Qd8 {[%emt 0:00:00]} 26. Qd2 {[%emt 0:00:29]} Qh4 {[%emt 0:00:00]} 27. Kh2 {[%emt 0:01:08]} Rg5 {[%emt 0:00:00]} 28. Nh1 {[%emt 0:00:01]} Be5+ {[%emt 0:00:00]} 29. Kg1 {[%emt 0:01:12]} Bf4 {[%emt 0:00:00]} 30. Qd4 {[%emt 0:00:32]} Ne5 {[%emt 0:00:00]} 31. Qf2 {[%emt 0:00:44]} Qxh3 {[%emt 0:00:00]} 32. g3 {[%emt 0:00:24]} Bxg3 {[%emt 0:00:00]} 33. Nxg3 {[%emt 0:00:15]} Nxf3+ {[%emt 0:00:00]} 0-1